bitfinex-derivatives/quotes_ETHF0:USTF0_20250518
["timestamp","ask_amount","ask_price","bid_price","bid_amount"]
[1747607255618,3.88578,2414.8,2414.7,41.746]
[1747607256012,3.88578,2414.8,2414.7,54.184]
[1747607256208,3.058,2414.8,2414.7,55.01181]
[1747607256621,3.058,2414.8,2414.7,41.746]
[1747607256821,3.058,2414.8,2414.7,54.184]
[1747607257019,3.88578,2414.8,2414.7,41.746]
[1747607257222,8.12898,2414.8,2414.7,54.184]
[1747607257717,2.17206,2414.8,2414.7,42.57381]
[1747607258113,2.17206,2414.8,2414.7,67.43881]
[1747607258919,1e-05,2414.8,2414.7,76.92744765]
[1747607259215,4.2432,2415.7,2415.6,0.8275]
[1747607259416,3.2078,2416.2,2415.9,0.82739]
[1747607259618,5.07055,2416.1,2415.9,0.82737]
[1747607259921,4.2432,2416.1,2416.0,0.82737]
[1747607260109,8.12855,2416.1,2416.0,0.82737]
[1747607260315,8.12855,2416.1,2415.9,4.03518]
[1747607260621,7.3012,2416.1,2416.0,12.437]
[1747607260816,8.12853,2416.1,2416.0,12.437]
[1747607261417,0.8274,2415.9,2415.8,3.2078]
[1747607261623,0.8274,2415.9,2415.8,12.437]
[1747607261821,0.82754,2415.5,2415.3,0.8276]
[1747607262021,0.82754,2415.5,2415.4,12.437]
[1747607262324,3.058,2415.9,2415.4,15.6448]
[1747607262523,0.82745,2415.8,2415.5,5.27831]
[1747607262724,3.058,2415.9,2415.5,4.4508]
[1747607262924,0.8275,2415.6,2415.5,4.4508]
[1747607263131,3.058,2415.9,2415.5,4.4508]
[1747607263322,0.82745,2415.8,2415.6,0.8275]
[1747607263528,3.058,2415.9,2415.5,4.4508]
[1747607263725,0.82754,2415.5,2415.4,3.2078]
[1747607263930,2.06894,2415.4,2414.7,49.0619]
[1747607264127,0.82778,2414.8,2414.7,3.2078]
[1747607264327,0.82788,2414.5,2414.4,12.436]
[1747607264532,4.03568,2414.5,2414.4,12.436]
[1747607264723,0.82795,2414.3,2413.8,15.71500654]
[1747607265229,8.88595,2414.3,2413.8,15.71500654]
[1747607266229,8.88595,2414.3,2413.4,12.418]
[1747607266230,0.82829,2413.3,2413.2,12.437]
[1747607266432,0.82839,2413.0,2412.9,12.437]
[1747607267134,3.88639,2413.0,2412.9,12.437]
[1747607267337,3.058,2413.0,2412.9,12.437]
[1747607267631,3.88639,2413.0,2412.9,12.437]
[1747607268033,3.058,2413.0,2412.9,12.437]
[1747607268534,3.8864,2413.0,2412.9,12.437]
[1747607268735,3.8864,2413.0,2412.6,2.08859156]
[1747607268736,0.82846,2412.8,2412.6,2.08859156]
[1747607268926,0.82864,2412.3,2412.2,2.71073461]
[1747607269933,0.82864,2412.3,2412.1,12.44]
[1747607270136,0.82867,2412.2,2412.1,12.44]
[1747607270528,3.058,2412.3,2412.1,12.44]
[1747607270836,0.82867,2412.2,2412.1,12.44]
[1747607271134,3.88667,2412.2,2412.1,12.443]
[1747607271328,3.88667,2412.2,2412.1,12.45760767]
[1747607271528,3.058,2412.2,2412.1,13.28630767]
[1747607271727,4.2576,2413.0,2412.3,0.82862]
[1747607271934,0.82848,2412.8,2412.4,4.4571]
[1747607272126,3.2078,2412.7,2412.5,12.443]
[1747607272321,0.8285,2412.7,2412.6,0.02921063]
[1747607273031,5.8285,2412.7,2412.6,0.02921063]
[1747607273236,8.8865,2412.7,2412.6,0.02921063]
[1747607273631,0.82865,2412.3,2412.1,12.443]
[1747607273831,2.07134,2412.6,2411.8,5.45901]
[1747607274032,7.0354,2412.7,2411.9,13.27177]
[1747607274333,0.82863,2412.4,2412.3,0.01460296]
[1747607274634,0.82858,2412.5,2412.3,0.01460296]
[1747607275139,3.88659,2412.5,2412.4,0.02745575]
[1747607275336,3.058,2412.5,2412.4,0.02745575]
[1747607275536,3.058,2412.5,2412.4,18.30205575]
[1747607275737,0.09795697,2412.5,2412.4,35.48899346]
[1747607275929,0.09795697,2412.5,2412.4,40.09149346]
[1747607276125,0.82835,2413.2,2412.4,40.09149346]
[1747607276330,0.09218003,2413.4,2413.0,3.2078]
[1747607276631,0.09218003,2413.4,2413.1,4.6025]
[1747607276845,0.82836,2413.1,2413.0,12.446]
[1747607277033,2.16286003,2413.4,2412.6,7.8103]
[1747607277235,7.09416,2413.1,2413.0,0.02745575]
[1747607277441,3.88636,2413.1,2413.0,0.02745575]
[1747607277641,3.058,2413.1,2413.0,0.02745575]
[1747607277836,3.058,2413.1,2413.0,0.85584575]
[1747607278049,3.058,2413.1,2413.0,0.02745575]
[1747607278246,3.058,2413.1,2413.0,4.29405575]
[1747607278445,3.058,2413.1,2413.0,5.12244575]
[1747607278741,3.88636,2413.1,2413.0,12.43945575]
[1747607279038,3.058,2413.1,2413.0,12.43945575]
[1747607279243,3.058,2413.1,2413.0,13.26784575]
[1747607279448,3.058,2413.1,2413.0,0.02745575]
[1747607279640,3.88636,2413.1,2413.0,12.43945575]
[1747607280845,3.058,2413.1,2413.0,13.26784575]
[1747607281141,3.058,2413.1,2413.0,13.28852721]
[1747607281340,0.09218003,2413.4,2413.0,12.46013721]
[1747607281538,0.09218003,2413.4,2413.1,4.2963]
[1747607281739,0.82833,2413.2,2413.1,12.412]
[1747607282142,3.88633,2413.2,2413.1,12.48081867]
[1747607282445,3.058,2413.2,2413.1,13.24036]
[1747607282642,3.88633,2413.2,2413.1,0.08411742]
[1747607282849,0.82853,2412.6,2412.5,41.765]
[1747607283146,0.82851,2412.7,2412.5,41.765]
[1747607283345,0.82853,2412.6,2412.5,46.0613]
[1747607283545,0.82853,2412.6,2412.5,41.765]
[1747607283746,0.82852,2412.7,2412.5,54.178]
[1747607283947,3.9125,2413.1,2412.5,54.178]
[1747607284137,4.3277,2413.0,2412.7,0.82849]
[1747607284340,0.82845,2412.9,2412.8,4.2481]
[1747607284548,4.3277,2413.0,2412.5,54.178]
[1747607284741,3.058,2413.1,2413.0,0.8284]
[1747607284945,3.058,2413.1,2413.0,16.4492]
[1747607285142,7.2911,2413.3,2412.8,4.2481]
[1747607285349,0.8284,2413.0,2412.9,12.413]
[1747607285650,0.82843,2412.9,2412.8,4.2481]
[1747607285837,0.82846,2412.8,2412.7,3.2078]
[1747607286040,0.82846,2412.8,2412.7,15.6208]
[1747607286241,3.058,2412.9,2412.7,15.6208]
[1747607286455,3.058,2412.9,2412.8,5.07656]
[1747607286749,0.82853,2412.6,2412.5,41.765]
[1747607287147,3.88653,2412.6,2412.5,58.4261]
[1747607287548,3.058,2412.6,2412.5,58.4261]
[1747607287749,3.058,2412.6,2412.5,64.25467]
[1747607287953,3.058,2412.6,2412.5,59.25467]
[1747607288254,4.4632,2413.1,2412.5,75.8586345]
[1747607288453,0.09218003,2413.2,2413.1,0.82836]
[1747607288648,0.09218003,2413.2,2413.1,13.24136]
[1747607288855,0.09218003,2413.2,2413.1,16.44916]
[1747607289049,0.09218003,2413.2,2413.1,20.86866]
[1747607289249,3.15018003,2413.2,2413.1,20.9021945]
[1747607289456,3.15018003,2413.2,2413.1,20.92532167]
[1747607289847,3.15018003,2413.2,2413.1,25.13162167]
[1747607290653,3.97851003,2413.2,2413.1,7.68396167]
[1747607290854,8.41181003,2413.2,2413.1,0.05666167]
[1747607292258,8.41181003,2413.2,2413.1,12.46966167]
[1747607293452,7.58348003,2413.2,2413.1,13.29802167]
[1747607293653,7.58348003,2413.2,2413.1,4.09282167]
[1747607293860,7.58348003,2413.2,2413.1,15.67746167]
[1747607294159,3.97851003,2413.2,2413.1,12.46966167]
[1747607294360,3.15018003,2413.2,2413.1,13.29802167]
[1747607294659,3.97851003,2413.2,2413.1,12.46966167]
[1747607294857,0.8284,2413.0,2412.8,8.72405]
[1747607295051,0.8284,2413.0,2412.9,12.413]
[1747607295250,0.82843,2412.9,2412.8,3.2078]
[1747607295960,0.82846,2412.8,2412.7,12.413]
[1747607296152,0.8286,2412.4,2412.3,3.2078]
[1747607296661,0.8286,2412.4,2412.3,15.63422234]
[1747607297363,0.82858,2412.5,2412.3,15.63422234]
[1747607297552,4.5129,2412.6,2412.5,0.82857]
[1747607297957,4.5129,2412.6,2412.4,4.55482234]
[1747607298260,7.5709,2412.6,2412.5,13.24257]
[1747607298457,3.058,2412.6,2412.5,17.78397]
[1747607298651,3.058,2412.6,2412.5,17.79739234]
[1747607299255,5.34131,2413.0,2412.5,16.96882234]
[1747607299557,5.3413,2413.0,2412.8,0.82844]
[1747607299761,0.81505766,2412.8,2412.6,4.03631]
[1747607299962,0.81505766,2412.8,2412.7,12.414]
[1747607300158,0.8285,2412.7,2412.6,3.2078]
[1747607300356,3.058,2412.8,2412.7,0.8285]
[1747607300555,3.058,2412.8,2412.7,5.1941]
[1747607300955,3.88646,2412.8,2412.7,4.3656]
[1747607301158,3.88646,2412.8,2412.6,3.2078]
[1747607301159,0.8285,2412.7,2412.6,3.2078]
[1747607301359,7.4739,2412.8,2412.7,0.8285]
[1747607301565,3.058,2412.8,2412.7,0.8285]
[1747607301764,3.058,2412.8,2412.7,10.1941]
[1747607302066,3.058,2412.8,2412.7,9.30962978]
[1747607302366,0.82842,2413.0,2412.8,0.82843]
[1747607302567,4.4159,2413.2,2412.9,4.3083]
[1747607302768,0.82823,2413.5,2413.4,0.82825]
[1747607303063,0.82839,2413.0,2412.9,4.3083]
[1747607303261,7.4193,2413.5,2412.9,16.7223]
[1747607303461,0.82833,2413.2,2413.1,0.82835]
[1747607303658,3.058,2413.5,2413.1,0.82835]
[1747607303659,1.21580193,2413.5,2413.4,0.82826]
[1747607303854,4.3613,2414.5,2414.1,0.82802]
[1747607304058,4.3613,2414.7,2414.1,33.82282]
[1747607304261,2.39356017,2414.2,2414.1,38.40123148]
[1747607304465,2.39356017,2414.2,2414.1,79.20123148]
[1747607304664,2.39356017,2414.2,2414.1,39.59502337]
[1747607304965,2.39356017,2414.2,2414.1,39.59402337]
[1747607305760,4.3613,2415.1,2414.2,2.06997]
[1747607305959,7.97017619,2415.5,2415.3,0.82759]
[1747607306160,11.02817619,2415.5,2415.4,0.82757]
[1747607306661,3.058,2415.5,2415.4,12.413]
[1747607306861,3.058,2415.5,2415.4,13.24057]
[1747607307260,3.058,2415.5,2415.4,17.65047]
[1747607307566,3.058,2415.5,2415.4,30.01247]
[1747607308266,4.5907,2415.7,2415.6,0.8275]
[1747607308461,4.5907,2415.7,2415.6,4.0353]
[1747607309163,3.058,2415.7,2415.6,3.2078]
[1747607309368,3.058,2415.7,2415.6,4.0353]
[1747607309664,3.97257491,2416.7,2416.4,0.8223207]
[1747607309853,5.65e-06,2416.5,2416.4,33.7491207]
[1747607310057,5.65e-06,2416.5,2416.4,33.17379538]
[1747607310257,5.65e-06,2416.5,2416.4,28.7441207]
[1747607311265,1.99685539,2418.3,2416.7,2.06776]
[1747607311461,6.57932,2417.6,2417.0,3.2078]
[1747607311664,0.82696,2417.2,2417.1,12.357]
[1747607311963,0.82716,2416.6,2416.5,3.2078]
[1747607312261,0.82721,2416.5,2416.1,3.2078]
[1747607312462,3.058,2416.6,2416.5,0.8272]
[1747607312659,3.058,2416.6,2416.5,13.1842]
[1747607312860,3.058,2416.6,2416.5,17.7372]
[1747607313261,4.2634,2417.0,2416.5,4.553]
[1747607313563,5.09042,2417.0,2416.9,3.2078]
[1747607313964,0.82719,2416.6,2416.5,12.354]
[1747607314265,3.058,2416.6,2416.5,12.354]
[1747607315160,3.058,2416.6,2416.5,13.1812]
[1747607315361,3.058,2416.6,2416.5,17.848]
[1747607315563,3.058,2416.6,2416.5,17.0208]
[1747607315769,3.058,2416.6,2416.4,44.9528]
[1747607315967,5.2758,2416.5,2415.7,15.5618]
[1747607316265,3.058,2416.6,2416.0,5.27619]
[1747607316469,3.058,2416.6,2416.3,3.2078]
[1747607316769,3.058,2416.6,2416.5,0.8272]
[1747607316961,2.11046,2416.6,2416.5,0.8272]
[1747607317160,3.2078,2418.1,2416.8,0.82709]
[1747607317361,7.4853,2417.5,2416.8,3.2078]
[1747607317564,7.4853,2417.5,2416.8,12.352]
[1747607317770,9.55252,2417.5,2416.8,12.352]
[1747607317963,0.09218003,2416.9,2416.8,12.352]
[1747607318165,7.40138003,2416.9,2416.8,13.17909]
[1747607318567,7.40138003,2416.9,2416.7,3.2078]
[1747607318765,7.40138003,2416.9,2416.4,3.2078]
[1747607318963,0.82717,2416.6,2416.3,0.82724]
[1747607319167,4.2512,2416.5,2416.4,0.82723]
[1747607319563,3.058,2416.6,2416.5,0.8272]
[1747607319965,3.058,2416.6,2416.5,13.1572]
[1747607320165,4.2512,2416.8,2416.6,0.82713]
[1747607320369,5.07829,2416.8,2416.7,12.349]
[1747607320565,5.07832,2416.8,2416.7,12.349]
[1747607320965,5.07831,2416.8,2416.7,12.349]
[1747607321172,0.09218003,2416.9,2416.8,0.82709]
[1747607321361,0.09218003,2416.9,2416.8,5.35229]
[1747607321561,3.2078,2418.1,2416.8,9.5252]
[1747607321760,0.82677,2417.8,2417.4,3.2078]
[1747607321967,4.3432,2418.0,2417.5,24.676]
[1747607322163,7.4012,2418.0,2417.9,0.82672]
[1747607322366,3.058,2418.0,2417.9,0.82672]
[1747607322569,3.8847,2418.0,2417.7,4.03457]
[1747607322766,3.058,2418.0,2417.8,24.675]
[1747607322966,0.82672,2417.9,2417.8,24.675]
[1747607323275,3.058,2417.9,2417.8,13.17474]
[1747607323668,3.058,2417.9,2417.8,17.68804]
[1747607323870,3.058,2417.9,2417.8,30.01204]
[1747607324377,0.82654,2418.5,2417.8,13.85798677]
[1747607324674,2.06629,2418.5,2417.9,12.348]
[1747607324971,3.2078,2419.3,2418.4,3.2078]
[1747607325180,0.82642,2418.8,2418.5,70.8933]
[1747607325363,3.2078,2418.9,2418.5,41.713]
[1747607325673,4.03428,2418.6,2418.5,41.713]
[1747607325865,3.2078,2419.1,2418.5,54.058]
[1747607326064,6.2658,2419.1,2418.5,54.058]
[1747607326266,0.82643,2418.8,2418.5,54.058]
[1747607326472,6.2658,2419.1,2418.5,54.058]
[1747607326665,6.2658,2419.1,2418.6,4.3894]
[1747607326870,6.2658,2419.1,2418.5,41.713]
[1747607327185,0.82648,2418.6,2418.5,41.713]
[1747607327372,3.2078,2418.7,2417.8,3.2078]
[1747607327574,0.82684,2417.6,2417.5,3.2078]
[1747607327766,0.82682,2417.6,2417.5,12.345]
[1747607328178,0.82689,2417.4,2417.3,1.2367955]
[1747607328769,0.82689,2417.4,2417.3,13.5787955]
[1747607329276,3.88489,2417.4,2417.3,13.5787955]
[1747607329972,8.88489,2417.4,2417.3,13.5787955]
[1747607330377,12.09269,2417.4,2417.3,1.2367955]
[1747607330779,0.82702,2417.0,2416.9,2.44461572]
[1747607330968,4.03482,2417.0,2416.9,2.44461572]
[1747607331172,7.09282,2417.0,2416.9,2.44461572]
[1747607331373,7.09282,2417.0,2416.5,3.25664624]
[1747607331374,0.82716,2416.6,2416.5,3.25664624]
[1747607331575,0.82716,2416.6,2415.9,1.21755883]
[1747607331576,3.2078,2416.6,2415.9,1.21755883]
[1747607331882,0.82726,2416.3,2416.2,12.343]
[1747607332176,3.058,2416.3,2416.2,13.1703]
[1747607332373,0.82703,2417.0,2416.6,0.82714]
[1747607332573,0.82703,2417.0,2416.7,12.343]
[1747607332769,0.82696,2417.2,2416.7,20.056]
[1747607332968,7.5296,2417.3,2416.8,12.343]
[1747607333175,10.5876,2417.3,2416.8,12.343]
[1747607333479,0.82706,2417.0,2416.8,12.343]
[1747607333679,0.82706,2416.9,2416.8,12.343]
[1747607334069,0.82706,2416.9,2416.7,12.343]
[1747607334070,0.82709,2416.8,2416.7,12.343]
[1747607334777,0.8272,2416.5,2416.4,3.2078]
[1747607334973,3.2078,2416.7,2415.8,4.5052]
[1747607335180,3.058,2416.5,2416.1,3.2078]
[1747607335481,3.058,2416.5,2416.3,0.82724]
[1747607335679,3.058,2416.5,2416.4,16.9577]
[1747607335873,3.8852,2416.5,2416.4,16.9577]
[1747607336573,3.058,2416.5,2416.4,17.78493]
[1747607336875,3.8852,2416.5,2416.4,4.6147]
[1747607337080,3.8852,2416.5,2416.4,12.344]
[1747607337374,0.8273,2416.2,2415.8,7.8225]
[1747607337584,5.27588,2416.4,2415.9,12.344]
[1747607337878,0.82724,2416.4,2416.1,0.82732]
[1747607338078,3.058,2416.5,2416.0,4.6147]
[1747607338286,4.1847,2416.6,2416.0,4.6147]
[1747607338287,0.82731,2416.2,2416.0,4.6147]
[1747607338478,3.058,2416.4,2416.0,4.6147]
[1747607338672,0.8273,2416.2,2416.1,1.26556947]
[1747607339381,8.8853,2416.2,2416.1,1.26556947]
[1747607339680,0.82743,2415.8,2415.7,41.695]
[1747607339877,4.03523,2415.8,2415.7,41.695]
[1747607340081,0.82743,2415.8,2415.7,54.003]
[1747607340274,3.88543,2415.8,2415.7,54.003]
[1747607341378,3.058,2415.8,2415.7,54.83047]
[1747607341581,3.058,2415.8,2415.7,41.695]
[1747607341781,3.88543,2415.8,2415.7,54.003]
[1747607342076,3.88543,2415.8,2415.7,41.695]
[1747607342272,12.09323,2415.8,2415.7,12.308]
[1747607342473,2.06882,2415.6,2414.7,3.2078]
[1747607342673,2.06902,2415.3,2414.6,12.308]
[1747607342873,0.82778,2414.8,2414.6,12.308]
[1747607343076,0.82778,2414.8,2414.7,4.3192]
[1747607343276,0.82781,2414.7,2414.6,12.308]
[1747607343484,4.3518,2414.7,2414.6,12.308]
[1747607343784,3.058,2414.8,2414.6,12.31]
[1747607343979,3.058,2414.8,2414.7,12.31]
[1747607344388,3.88578,2414.8,2414.7,12.31]
[1747607344885,3.058,2414.8,2414.7,12.31]
[1747607345076,3.058,2414.8,2414.7,13.13781]
[1747607345473,2.87045562,2414.8,2414.7,13.13781]
[1747607345678,2.87045562,2414.8,2414.7,17.39011]
[1747607346078,0.82769,2415.1,2414.7,29.69211]
[1747607346382,4.3144,2415.4,2414.8,4.2523]
[1747607346780,0.82765,2415.2,2414.9,0.82772]
[1747607346983,0.82761,2415.3,2415.0,5.08]
[1747607347181,3.058,2415.3,2415.0,4.2523]
[1747607347388,3.88561,2415.3,2415.1,13.13966]
[1747607347683,3.88561,2415.3,2415.2,4.2523]
[1747607348281,3.88561,2415.3,2415.2,12.312]
[1747607348484,0.82767,2415.1,2415.0,12.312]
[1747607348886,0.82767,2415.2,2415.0,12.312]
[1747607349082,3.058,2415.1,2415.0,13.13969]
[1747607349678,3.058,2415.1,2415.0,17.57869]
[1747607349884,3.058,2415.1,2415.0,16.752]
[1747607350191,3.058,2415.2,2415.1,0.82767]
[1747607350488,3.058,2415.2,2415.1,4.439]
[1747607350790,3.058,2415.2,2415.0,12.313]
[1747607350991,3.058,2415.2,2415.1,5.37217]
[1747607351289,3.058,2415.2,2415.1,4.5445]
[1747607351484,0.82774,2414.9,2414.8,12.313]
[1747607351787,3.058,2415.2,2414.6,7.7523]
[1747607351994,0.82774,2415.0,2414.7,13.14079]
[1747607352191,0.82774,2414.9,2414.8,12.314]
[1747607352487,5.28804,2414.9,2414.8,12.314]
[1747607352983,0.82781,2414.7,2414.6,4.5445]
[1747607353183,3.058,2414.7,2414.3,3.2078]
[1747607353393,0.82791,2414.4,2414.3,3.2078]
[1747607353585,0.82791,2414.4,2414.3,15.5218]
[1747607354190,3.88591,2414.4,2414.3,15.5218]
[1747607354885,0.82798,2414.2,2414.1,4.5261]
[1747607355188,0.82805,2414.0,2413.9,41.707]
[1747607355386,5.35014,2414.1,2413.9,54.023]
[1747607355593,3.058,2414.2,2414.1,0.82802]
[1747607355787,3.058,2414.2,2414.1,4.03582]
[1747607355982,3.058,2414.2,2414.1,3.2078]
[1747607356195,3.058,2414.2,2414.1,16.35182]
[1747607356891,3.058,2414.2,2414.1,3.2078]
[1747607357088,3.88598,2414.2,2414.1,12.316]
[1747607357292,0.82803,2414.1,2413.9,46.2331]
[1747607357485,5.33793,2414.1,2414.0,12.316]
[1747607357791,4.5099,2414.1,2414.0,17.32015]
[1747607357991,3.058,2414.2,2414.0,16.4921]
[1747607358190,3.058,2414.2,2414.1,0.82802]
[1747607358385,3.058,2414.2,2414.1,5.00412]
[1747607358792,3.058,2414.2,2414.1,16.4941]
[1747607358793,3.88598,2414.2,2414.1,16.4941]
[1747607358981,0.82805,2414.0,2413.9,41.707]
[1747607359180,0.82805,2414.0,2413.9,54.025]
[1747607359384,0.82805,2414.0,2413.9,58.2011]
[1747607359780,5.33793,2414.1,2413.9,58.2011]
[1747607359993,0.82805,2414.0,2413.9,58.2011]
[1747607360186,3.058,2414.0,2413.9,46.71119]
[1747607360386,3.058,2414.0,2413.9,58.2011]
[1747607360597,3.058,2414.0,2413.9,59.02919]
[1747607360991,3.058,2414.0,2413.9,46.71119]
[1747607361191,0.09218003,2414.2,2413.9,71.31919]
[1747607361490,0.09218003,2414.2,2414.1,4.03582]
[1747607361790,3.058,2414.6,2414.5,0.82788]
[1747607361987,3.058,2414.6,2414.5,28.64368]
[1747607362188,0.82769,2415.1,2414.8,0.82778]
[1747607362392,4.4311,2415.3,2414.9,4.48]
[1747607362592,0.82769,2415.1,2415.0,12.319]
[1747607363491,5.25873,2415.3,2415.0,13.14669]
[1747607363696,0.82766,2415.2,2415.1,16.8016]
[1747607363995,0.82764,2415.2,2415.1,12.319]
[1747607364197,4.4311,2415.3,2414.8,3.2078]
[1747607364394,4.3457,2415.1,2414.8,7.6904]
[1747607364589,4.3457,2415.1,2414.9,12.318]
[1747607364796,5.17337,2415.1,2415.0,12.318]
[1747607365099,9.3457,2415.1,2415.0,12.318]
[1747607365293,4.3457,2415.1,2415.0,12.318]
[1747607365496,7.4461,2415.9,2415.3,0.82757]
[1747607365692,0.82761,2415.3,2415.1,4.4826]
[1747607365891,0.82764,2415.2,2415.1,4.4826]
[1747607366094,0.82764,2415.2,2415.1,16.8006]
[1747607366801,0.82758,2415.4,2415.1,16.8006]
[1747607366999,4.5677,2415.3,2415.1,17.62826]
[1747607367196,7.4461,2415.9,2415.1,20.0084]
[1747607367503,0.82742,2415.9,2415.6,0.82749]
[1747607367697,2.06807,2416.5,2416.2,0.82728]
[1747607367698,1.27394895,2416.5,2416.2,0.82728]
[1747607367898,4.5677,2416.4,2416.3,12.318]
[1747607368098,0.82729,2416.3,2416.2,4.28]
[1747607368306,0.82729,2416.3,2416.2,16.598]
[1747607368496,0.82726,2416.3,2416.2,16.598]
[1747607368802,5.39495,2416.4,2416.2,16.598]
[1747607369100,0.82726,2416.3,2416.2,16.598]
[1747607369301,5.39495,2416.4,2416.2,16.598]
[1747607369803,4.5677,2416.4,2416.2,16.598]
[1747607370202,9.5677,2416.4,2415.8,3.2078]
[1747607370505,0.8275,2415.6,2415.5,12.272]
[1747607370702,0.82754,2415.5,2415.4,1.63815299]
[1747607370900,4.5529,2415.5,2415.4,13.91015299]
[1747607371095,5.38044,2415.5,2415.4,13.91015299]
[1747607372105,3.2078,2416.1,2415.4,13.91015299]
[1747607372402,8.1627,2416.4,2415.5,19.7039]
[1747607372609,0.82737,2416.0,2415.8,3.2078]
[1747607372908,0.82734,2416.1,2415.9,12.272]
[1747607373105,0.82731,2416.2,2415.9,17.32749]
[1747607373301,4.3536,2416.3,2416.1,3.2078]
[1747607373603,0.82721,2416.5,2416.2,5.05537]
[1747607373904,5.18081,2416.5,2416.2,5.05537]
[1747607374608,0.82724,2416.4,2416.2,4.2281]
[1747607375106,5.18081,2416.5,2416.2,5.05538]
[1747607375401,20.4287,2417.1,2416.2,5.05538]
[1747607375402,10.68306,2417.0,2416.4,3.2078]
[1747607375600,0.82709,2416.8,2416.7,3.2078]
[1747607375799,0.82714,2416.7,2416.5,4.2648]
[1747607376000,0.82714,2416.7,2416.6,12.271]
[1747607376398,0.82711,2416.8,2416.6,16.5358]
[1747607376804,0.82709,2416.8,2416.6,16.5358]
[1747607377008,14.2397,2417.0,2416.4,3.2078]
[1747607377202,4.3837,2416.7,2416.5,12.27]
[1747607377403,0.82716,2416.6,2416.5,12.27]
[1747607377902,0.82726,2416.3,2416.2,3.2078]
[1747607378105,2.06779,2416.8,2416.2,15.4778]
[1747607378106,4.198,2416.5,2416.2,15.4778]
[1747607378300,0.82724,2416.4,2416.3,4.3578]
[1747607378606,8.1627,2417.1,2416.3,4.3578]
[1747607378802,4.198,2417.0,2416.8,0.82708]
[1747607378999,4.198,2417.0,2416.9,16.6268]
[1747607379203,5.02502,2417.0,2416.9,16.6268]
[1747607379400,4.198,2417.0,2416.9,16.6268]
[1747607379609,0.82696,2417.2,2416.9,16.6268]
[1747607379809,3.2078,2417.3,2417.0,12.269]
[1747607380009,5.02496,2417.2,2417.1,12.269]
[1747607380809,0.82713,2416.7,2416.6,15.4568]
[1747607381015,0.82713,2416.7,2416.6,15.4768]
[1747607381308,0.82713,2416.7,2416.6,3.2078]
[1747607381511,0.82723,2416.4,2416.3,3.2078]
[1747607381705,0.82723,2416.5,2416.3,3.2078]
[1747607381906,4.035,2416.5,2416.4,12.269]
[1747607382108,0.8272,2416.5,2416.4,12.269]
[1747607382303,3.2078,2416.9,2416.8,0.82709]
[1747607382508,2.06748,2417.1,2416.8,12.267]
[1747607382708,0.82706,2416.9,2416.8,12.267]
[1747607385414,3.2078,2417.3,2417.2,0.82696]
[1747607385616,2.06667,2418.1,2417.2,3.2078]
[1747607385814,2.06687,2417.9,2417.3,16.6093]
[1747607386016,0.82689,2417.4,2417.3,4.3433]
[1747607386318,3.2078,2417.6,2416.8,3.2078]
[1747607386615,0.82697,2417.2,2416.9,24.502]
[1747607386811,3.2078,2417.7,2417.0,0.82701]
[1747607387012,0.82694,2417.3,2417.1,4.3433]
[1747607387217,0.82696,2417.2,2417.1,4.3433]
[1747607387813,2.06719,2417.5,2416.8,3.2078]
[1747607388010,0.82706,2416.9,2416.8,3.2078]
[1747607388513,0.82706,2416.9,2416.8,15.4728]
[1747607389516,5.27529,2417.1,2416.8,12.265]
[1747607389716,0.82706,2416.9,2416.8,12.265]
[1747607390221,2.15953003,2417.3,2416.7,3.2078]
[1747607390518,0.82709,2416.8,2416.7,3.2078]
[1747607390719,0.82708,2416.9,2416.7,15.4728]
[1747607391023,0.82704,2417.0,2416.8,4.4948]
[1747607391214,0.09218003,2417.3,2416.8,4.4948]
[1747607391413,0.09218003,2417.3,2417.1,4.03477]
[1747607391619,0.09218003,2417.3,2417.2,16.7588]
[1747607391620,0.91910003,2417.3,2417.2,16.7588]
[1747607392620,0.09218003,2417.3,2416.8,7.3599]
[1747607392820,0.82703,2417.0,2416.9,16.7588]
[1747607393018,0.82706,2416.9,2416.8,3.2078]
[1747607393212,0.82706,2416.9,2416.8,15.4718]
[1747607393421,0.82706,2416.9,2416.8,3.2078]
[1747607393621,0.82706,2416.9,2416.8,15.4718]
[1747607394021,0.82722,2416.5,2416.4,3.2078]
[1747607394220,0.82715,2416.7,2416.4,28.51901]
[1747607394619,2.0674,2417.2,2416.6,0.82716]
[1747607395219,0.82709,2416.8,2416.7,3.2078]
[1747607395523,0.09218003,2417.3,2416.7,4.0349]
[1747607395724,3.29998003,2417.3,2416.7,3.2078]
[1747607395920,0.82709,2416.8,2416.7,15.4238]
[1747607396123,0.09218003,2417.3,2416.8,2.06774]
[1747607396417,0.09218003,2417.3,2417.0,4.03481]
[1747607396614,0.09218003,2417.3,2417.1,0.82699]
[1747607396814,0.09218003,2417.3,2417.2,16.643]
[1747607397221,0.91910003,2417.3,2417.2,4.379]
[1747607397410,0.91910003,2417.3,2417.2,16.642]
[1747607397614,0.09218003,2417.3,2417.2,16.642]
[1747607397815,0.09218003,2417.3,2417.0,3.2078]
[1747607398118,0.09218003,2417.3,2417.1,12.263]
[1747607398322,0.82696,2417.2,2417.1,12.263]
[1747607399118,0.82696,2417.2,2417.1,16.642]